bitfinex-derivatives/quotes_SOLF0:USTF0_20240907
["timestamp","ask_amount","ask_price","bid_price","bid_amount"]
[1725750374910,3.9476,126.67,126.63,3.9485]
[1725750378101,9.71,126.68,126.6,9.71]
[1725750378506,3.9479,126.66,126.62,3.9488]
[1725750378696,3.9479,126.66,126.62,9.71]
[1725750378901,9.71,126.68,126.62,9.71]
[1725750379104,3.9477,126.67,126.63,3.9485]
[1725750379305,3.9477,126.67,126.59,4.0768]
[1725750379306,9.71,126.68,126.59,4.0768]
[1725750379501,9.71,126.69,126.62,9.71]
[1725750379701,3.9473,126.68,126.64,3.9482]
[1725750379904,3.9473,126.68,126.65,3.87370665]
[1725750381905,3.9469,126.69,126.65,9.71]
[1725750382100,3.9469,126.69,126.66,3.93508647]
[1725750382295,3.9469,126.69,126.65,9.71]
[1725750382699,3.9469,126.69,126.65,13.6579]
[1725750383212,3.9469,126.69,126.65,17.56416233]
[1725750383899,3.9469,126.69,126.65,7.85416233]
[1725750384498,3.9469,126.69,126.66,3.9477]
[1725750384703,3.9465,126.7,126.66,3.9477]
[1725750385100,3.9465,126.7,126.67,3.9474]
[1725750385905,3.9465,126.7,126.68,3.94069725]
[1725750388809,3.9465,126.7,126.66,28.1876]
[1725750389308,3.9465,126.7,126.66,32.23229623]
[1725750390706,3.9465,126.7,126.67,3.9474]
[1725750392516,3.9463,126.71,126.66,28.28469623]
[1725750393314,3.9462,126.71,126.68,3.9469]
[1725750397919,3.9467,126.7,126.66,28.28469623]
[1725750398919,3.9467,126.7,126.66,24.24]
[1725750399120,3.9467,126.7,126.67,3.9472]
[1725750401017,3.9464,126.71,126.66,28.26337719]
[1725750401723,3.9464,126.71,126.67,3.9471]
[1725750403524,3.9464,126.71,126.68,3.9471]
[1725750404022,3.9464,126.71,126.68,13.6571]
[1725750409434,3.9464,126.71,126.68,9.71]
[1725750410435,3.9464,126.71,126.68,13.6569]
[1725750411233,3.946,126.72,126.69,3.9468]
[1725750411535,3.946,126.72,126.69,13.6568]
[1725750412835,3.9457,126.73,126.7,3.9463]
[1725750413035,1.2974,126.75,126.71,9.71]
[1725750413227,14.97150884,126.78,126.71,9.71]
[1725750413432,3.9452,126.75,126.71,13.656]
[1725750413632,16.33330884,126.78,126.71,9.71]
[1725750414228,3.9452,126.75,126.71,13.6561]
[1725750414437,16.33330884,126.78,126.71,13.6561]
[1725750414738,16.33330884,126.78,126.72,13.6558]
[1725750414933,16.33330884,126.78,126.73,4.01405115]
[1725750415934,3.9451,126.75,126.73,4.01405115]
[1725750416736,3.9454,126.74,126.7,9.71]
[1725750417342,3.9454,126.74,126.71,3.946]
[1725750419238,3.9454,126.74,126.72,9.71]
[1725750423840,3.9454,126.74,126.71,3.9461]
[1725750424043,3.9454,126.74,126.71,13.6561]
[1725750424440,9.71,126.76,126.7,3.85507932]
[1725750424647,9.71,126.74,126.69,3.98855564]
[1725750424848,3.9465,126.7,126.67,13.6573]
[1725750425248,3.9465,126.7,126.68,3.8756906]
[1725750425945,3.9463,126.71,126.68,3.947]
[1725750426143,3.9463,126.71,126.69,3.89502762]
[1725750426344,3.9463,126.71,126.69,13.60502762]
[1725750429645,1.3066,126.75,126.7,9.71]
[1725750429845,1.3066,126.75,126.71,9.71]
[1725750430449,3.9457,126.73,126.71,9.71]
[1725750430854,3.9457,126.73,126.71,13.60998421]
[1725750434051,3.9457,126.73,126.71,17.55618421]
[1725750435354,3.9457,126.73,126.71,13.60998421]
[1725750442266,11.0166,126.75,126.67,9.71]
[1725750442458,1.2943,126.74,126.67,13.67913726]
[1725750442657,3.9463,126.71,126.68,3.9471]
[1725750446558,9.71,126.73,126.67,3.96913726]
[1725750446862,1.2943,126.74,126.65,9.71]
[1725750446863,10.9942,126.72,126.65,9.71]
[1725750447064,3.9465,126.7,126.66,3.9477]
[1725750447370,10.9942,126.72,126.66,3.9477]
[1725750448656,3.9467,126.7,126.66,3.9477]
[1725750451965,5.2303,126.72,126.65,3.90849518]
[1725750452158,3.9461,126.72,126.7,9.71]
[1725750452364,3.9461,126.72,126.7,13.67367943]
[1725750458575,3.9457,126.73,126.7,17.61997943]
[1725750459276,3.9459,126.72,126.7,17.61997943]
[1725750460076,3.9457,126.73,126.7,17.61997943]
[1725750460477,3.9453,126.74,126.71,9.71]
[1725750460971,3.9453,126.74,126.71,13.656]
[1725750461771,3.9453,126.74,126.72,3.87857523]
[1725750464170,3.9456,126.73,126.71,9.71]
[1725750464375,3.9456,126.73,126.7,13.6563]
[1725750464771,3.9456,126.73,126.71,3.92050568]
[1725750471878,3.9454,126.74,126.71,3.9461]
[1725750472179,3.9454,126.74,126.72,4.00820901]
[1725750482285,3.9455,126.73,126.71,3.9461]
[1725750482591,3.9455,126.73,126.7,3.9463]
[1725750482793,3.9455,126.73,126.71,4.02517957]
[1725750483296,3.9459,126.72,126.7,3.9463]
[1725750483790,3.9459,126.72,126.7,7.97818886]
[1725750483988,3.9459,126.72,126.69,13.6566]
[1725750484184,2.5797,126.78,126.68,3.89533506]
[1725750484185,9.71,126.74,126.68,3.89533506]
[1725750484390,2.7435,126.73,126.67,9.71]
[1725750484591,2.7435,126.73,126.68,3.88862577]
[1725750484789,3.9466,126.7,126.68,3.88862577]
[1725750485392,3.9466,126.7,126.67,13.6573]
[1725750485893,3.9466,126.7,126.67,17.52167199]
[1725750489690,4.0403,126.73,126.67,13.57437199]
[1725750489891,9.71,126.72,126.67,3.86437199]
[1725750490095,9.71,126.72,126.66,9.71]
[1725750490395,9.71,126.72,126.64,4.1304]
[1725750490396,9.71,126.72,126.65,3.9478]
[1725750490601,9.71,126.72,126.66,3.92950185]
[1725750491107,3.9472,126.68,126.66,3.92950185]
[1725750495508,3.9469,126.69,126.66,13.6576]
[1725750495704,3.9469,126.69,126.67,3.93674865]
[1725750496407,3.9465,126.7,126.67,7.88404865]
[1725750497803,23.73,126.8,126.69,9.71]
[1725750498005,23.73,126.8,126.64,4.1304]
[1725750498006,9.71,126.77,126.71,9.71]
[1725750498212,9.71,126.77,126.71,13.72176746]
[1725750498406,3.9457,126.73,126.71,13.72176746]
[1725750498810,3.9457,126.73,126.71,9.71]
[1725750499620,3.9454,126.74,126.71,9.71]
[1725750499812,9.71,126.76,126.7,4.03229205]
[1725750500112,9.71,126.76,126.69,9.71]
[1725750500307,9.71,126.76,126.7,4.01176746]
[1725750500514,3.9458,126.73,126.7,7.95806746]
[1725750500712,3.9458,126.73,126.7,3.9463]
[1725750501211,3.9458,126.73,126.71,3.99874224]
[1725750505707,3.9459,126.72,126.69,3.9466]
[1725750506118,3.9459,126.72,126.69,7.82850997]
[1725750507708,3.9463,126.71,126.68,3.947]
[1725750507914,9.71,126.73,126.67,9.71]
[1725750508114,9.71,126.73,126.68,4.0161092]
[1725750508313,3.9466,126.7,126.68,4.0161092]
[1725750510215,12.3537,126.73,126.68,4.0161092]
[1725750511021,3.9466,126.7,126.68,4.0161092]
[1725750517035,3.9466,126.7,126.68,7.9632092]
[1725750517231,3.9466,126.7,126.66,9.71]
[1725750517431,3.9466,126.7,126.66,13.56085086]
[1725750517637,3.9466,126.7,126.67,3.9473]
[1725750520937,3.9466,126.7,126.68,3.9471]
[1725750521134,1.3606,126.74,126.68,3.9471]
[1725750521135,3.9463,126.71,126.68,3.9471]
[1725750521541,3.9463,126.71,126.69,3.9468]
[1725750523833,3.9463,126.71,126.68,3.9469]
[1725750524038,13.68955471,126.73,126.66,3.85085086]
[1725750524234,13.68955471,126.73,126.65,9.71]
[1725750524434,13.68955471,126.73,126.67,3.9472]
[1725750524736,3.9467,126.7,126.67,3.9472]
[1725750528938,3.9463,126.71,126.68,3.947]
[1725750531038,3.9459,126.72,126.69,3.9467]
[1725750532141,3.9462,126.71,126.69,3.9467]
[1725750533444,3.9465,126.7,126.66,13.59322422]
[1725750533647,9.71,126.73,126.66,9.71]
[1725750534243,9.71,126.73,126.66,13.67770882]
[1725750534951,3.9465,126.7,126.66,13.67770882]
[1725750535549,3.9465,126.7,126.67,3.9472]
[1725750536653,3.9463,126.71,126.68,3.9471]
[1725750537748,3.9465,126.7,126.68,3.9471]
[1725750540054,3.96762731,126.72,126.66,3.96770882]
[1725750540253,3.96762731,126.72,126.66,9.71]
[1725750540456,3.96762731,126.72,126.66,13.72894986]
[1725750540651,3.9467,126.7,126.67,3.9472]
[1725750561063,3.9463,126.71,126.68,3.947]
[1725750566774,9.71,126.72,126.67,3.9472]
[1725750567484,9.71,126.68,126.61,114.02212761]
[1725750567679,9.71,126.67,126.59,13.63515761]
[1725750567979,3.9485,126.64,126.61,3.9491]
[1725750568379,7.58052806,126.63,126.61,3.9491]
[1725750568574,7.58052806,126.62,126.61,3.9491]
[1725750569083,7.58052806,126.62,126.59,9.71]
[1725750569381,7.58052806,126.61,126.6,3.9496]
[1725750569682,11.1039,126.67,126.6,3.9496]
[1725750569887,3.9485,126.64,126.6,3.9496]
[1725750570092,7.58216492,126.63,126.6,3.9496]
[1725750570285,7.58216492,126.62,126.6,3.9496]
[1725750570593,7.58216492,126.61,126.6,3.9496]
[1725750572092,7.58216492,126.61,126.6,13.6596]
[1725750573182,3.9484,126.64,126.61,3.9493]
[1725750573385,7.58141211,126.63,126.61,3.9493]
[1725750573692,7.58141211,126.62,126.61,3.9493]
[1725750576790,3.9484,126.64,126.61,3.9493]
[1725750576984,7.58181478,126.62,126.61,3.9493]
[1725750580203,3.9484,126.64,126.61,3.9493]
[1725750580497,7.58120247,126.63,126.61,3.9493]
[1725750580797,7.58120247,126.62,126.61,3.9493]
[1725750582493,7.58120247,126.62,126.58,13.63445532]
[1725750582699,7.58120247,126.61,126.58,9.71]
[1725750582998,7.58120247,126.6,126.58,9.71]
[1725750583185,3.9488,126.63,126.6,3.9495]
[1725750583391,7.57994363,126.62,126.6,3.9495]
[1725750583589,7.57994363,126.61,126.6,3.9495]
[1725750583796,3.9488,126.63,126.6,3.9495]
[1725750584094,7.5799359,126.61,126.6,3.9495]
[1725750584399,7.5799359,126.62,126.6,3.9495]
[1725750584600,7.5799359,126.61,126.6,3.9495]
[1725750585292,7.5799359,126.62,126.6,3.9495]
[1725750585493,7.5799359,126.61,126.6,3.9495]
[1725750585899,7.5799359,126.62,126.6,3.9495]
[1725750586203,11.1039,126.67,126.61,3.9493]
[1725750586404,7.58053643,126.66,126.61,3.9493]
[1725750586599,7.58053643,126.65,126.61,3.9493]
[1725750586798,7.58053643,126.64,126.61,3.9493]
[1725750587104,7.58053643,126.63,126.6,3.9493]
[1725750587305,3.9486,126.64,126.6,3.9493]
[1725750587492,7.58044006,126.62,126.6,3.9493]
[1725750587898,3.9486,126.64,126.6,3.9493]
[1725750588089,3.9488,126.63,126.6,3.9493]
[1725750588295,7.58033563,126.62,126.6,3.9493]
[1725750588496,7.58033563,126.61,126.6,3.9493]
[1725750590206,3.9488,126.63,126.6,3.9493]
[1725750590508,7.58031159,126.62,126.6,3.9493]
[1725750590710,3.9488,126.63,126.6,3.9493]
[1725750591200,7.58033565,126.62,126.6,3.9493]
[1725750591397,3.9488,126.63,126.6,3.9493]
[1725750591599,7.58033978,126.62,126.6,3.9493]
[1725750591797,3.9488,126.63,126.6,3.9493]
[1725750591996,7.58033978,126.62,126.58,3.92101105]
[1725750592197,3.9488,126.63,126.58,9.71]
[1725750592403,7.57715055,126.62,126.58,13.62974089]
[1725750592602,3.9488,126.63,126.58,13.62974089]
[1725750592807,7.57713561,126.62,126.58,13.62974089]
[1725750593009,3.9488,126.63,126.58,13.62974089]
[1725750593311,7.57713648,126.62,126.6,3.9496]
[1725750593506,3.9485,126.64,126.6,3.9496]
[1725750593697,7.57676777,126.63,126.6,3.9496]
[1725750594014,7.57676777,126.62,126.6,3.9496]
[1725750594302,7.57676777,126.62,126.58,13.62974089]
[1725750594303,3.9485,126.64,126.61,3.9493]
[1725750594608,7.57698166,126.63,126.61,3.9493]
[1725750595003,7.57698166,126.62,126.61,3.9493]
[1725750596306,3.9485,126.64,126.61,3.9493]
[1725750596501,7.57702986,126.63,126.61,3.9493]
[1725750596809,3.9485,126.64,126.61,3.9493]
[1725750597008,7.57702986,126.63,126.61,3.9493]
[1725750597207,3.9485,126.64,126.61,3.9493]
[1725750597407,7.57711184,126.63,126.61,3.9493]
[1725750597612,3.9485,126.64,126.61,3.9493]
[1725750598010,7.57706367,126.63,126.61,3.9493]
[1725750598212,3.9485,126.64,126.61,3.9493]
[1725750598401,7.57706366,126.63,126.61,3.9493]
[1725750598603,3.9485,126.64,126.61,3.9493]
[1725750599014,7.57706367,126.63,126.61,3.9493]
[1725750599309,3.9485,126.64,126.61,3.9493]
[1725750599515,7.57716655,126.63,126.61,3.9493]
[1725750599715,3.9485,126.64,126.61,3.9493]
[1725750599924,7.57703794,126.63,126.61,3.9493]
[1725750600216,3.9485,126.64,126.61,3.9493]
[1725750600512,7.57706366,126.63,126.61,3.9493]
[1725750600706,3.9485,126.64,126.61,3.9493]
[1725750601010,7.57708783,126.63,126.61,3.9493]
[1725750601210,3.9485,126.64,126.61,3.9493]
[1725750601412,11.52578783,126.63,126.6,3.9494]
[1725750601609,3.9487,126.63,126.6,3.9494]
[1725750602515,10.9892,126.65,126.58,13.62974089]
[1725750602708,7.57706304,126.64,126.58,13.62974089]
[1725750602904,7.57706304,126.63,126.58,13.62974089]
[1725750603122,10.9892,126.65,126.58,13.62974089]
[1725750603416,7.57705874,126.64,126.6,3.9495]
[1725750603608,7.57705874,126.63,126.6,3.9495]
[1725750603809,3.9486,126.64,126.6,3.9495]
[1725750604004,7.57703396,126.63,126.6,3.9495]
[1725750604210,3.9486,126.64,126.6,3.9495]
[1725750604410,7.57703888,126.63,126.6,3.9495]
[1725750604607,1.2792,126.65,126.6,9.71]
[1725750604807,7.57785574,126.64,126.62,9.71]
[1725750605012,1.3639,126.68,126.62,9.71]
[1725750605214,7.5791502,126.67,126.63,9.71]
[1725750605415,12.4665,126.7,126.63,9.71]
[1725750605609,7.58117531,126.69,126.63,9.71]
[1725750605816,7.58117531,126.68,126.65,3.948]
[1725750606116,7.58117531,126.67,126.65,3.948]
[1725750606311,3.947,126.69,126.65,3.948]
[1725750606512,7.58115162,126.68,126.66,3.97140357]
[1725750606713,7.58115162,126.67,126.66,3.97140357]
[1725750606916,9.71,126.69,126.64,3.9482]
[1725750607116,9.71,126.69,126.64,7.88720975]
[1725750607320,3.9473,126.68,126.64,7.88720975]
[1725750607716,9.71,126.69,126.64,7.88720975]
[1725750608323,3.9473,126.68,126.64,7.88720975]
[1725750608916,3.9473,126.68,126.65,3.948]
[1725750609623,3.9473,126.68,126.65,7.82069237]
[1725750610012,9.71,126.69,126.65,3.87269237]
[1725750610212,9.71,126.69,126.63,9.71]
[1725750610617,13.657,126.69,126.65,3.9478]
[1725750613220,3.9471,126.68,126.65,3.9478]
[1725750615431,3.9469,126.69,126.66,3.9477]
[1725750615723,12.4665,126.7,126.66,3.9477]
[1725750615930,3.9471,126.69,126.66,3.9477]
[1725750616131,12.4665,126.7,126.66,3.9477]
[1725750618029,9.71,126.69,126.65,3.9479]
[1725750618231,9.71,126.69,126.63,3.91139165]
[1725750618422,3.9476,126.67,126.64,3.9482]
[1725750618624,13.6576,126.67,126.64,7.85200666]
[1725750622035,13.6576,126.67,126.64,3.90380666]
[1725750622236,13.6576,126.67,126.63,3.9485]
[1725750622936,13.6576,126.67,126.64,3.88730332]
[1725750624433,3.9476,126.67,126.64,7.83560332]
[1725750626532,2.7565,126.7,126.65,9.71]
[1725750627035,2.7565,126.7,126.64,9.71]
[1725750627235,3.947,126.69,126.65,3.9479]
[1725750627436,3.947,126.69,126.66,4.02796118]
[1725750628531,3.947,126.69,126.66,7.97566118]
[1725750628735,3.947,126.69,126.66,3.9477]
[1725750631025,9.71,126.72,126.67,3.9472]
[1725750631239,1.3856,126.74,126.65,9.71]
[1725750631428,9.71,126.73,126.65,13.74427894]
[1725750631634,13.71821821,126.73,126.65,13.74427894]
[1725750631929,13.71821821,126.73,126.67,3.9472]
[1725750631930,3.9464,126.71,126.67,3.9472]
[1725750632340,3.9464,126.71,126.65,13.74427894]
[1725750632735,3.9464,126.71,126.65,4.03427894]
[1725750632935,3.9464,126.71,126.66,9.71]
[1725750633236,3.9464,126.71,126.66,13.56540761]
[1725750634232,3.9464,126.71,126.68,3.947]
[1725750634436,3.9459,126.72,126.66,13.56540761]
[1725750636038,3.9459,126.72,126.68,3.9469]
[1725750636536,10.987,126.75,126.71,3.9461]
[1725750636730,23.7,126.79,126.71,9.71]
[1725750636731,11.0125,126.77,126.71,9.71]
[1725750637441,1.3025,126.77,126.71,9.71]
[1725750637837,5.247,126.77,126.73,3.9453]
[1725750638743,3.9445,126.77,126.73,3.9453]
[1725750638940,3.9445,126.77,126.73,7.98336066]
[1725750640044,9.71,126.78,126.74,3.945]
[1725750640045,3.9442,126.78,126.74,3.945]
[1725750640243,9.71,126.78,126.73,4.03806066]
[1725750640443,9.71,126.78,126.7,9.71]
[1725750640638,3.9448,126.76,126.72,3.9457]
[1725750640838,3.9448,126.76,126.73,3.94128273]
[1725750642639,3.9443,126.77,126.73,7.88678273]
[1725750643346,12.4156,126.79,126.73,7.88678273]
[1725750643937,3.9445,126.77,126.73,7.88678273]
[1725750644842,9.71,126.78,126.73,3.94128273]
[1725750645649,3.9448,126.76,126.73,3.94128273]
[1725750647747,3.945,126.75,126.73,3.94128273]
[1725750649446,3.945,126.75,126.72,3.9457]
[1725750651053,9.71,126.75,126.67,3.9861]
[1725750651349,9.71,126.74,126.67,3.9861]
[1725750651544,9.71,126.74,126.67,13.6961]
[1725750652446,3.946,126.72,126.69,3.9466]
[1725750652850,3.9463,126.71,126.68,3.947]
[1725750653047,9.71,126.72,126.66,101.07445445]
[1725750653249,3.84905869,126.73,126.66,101.07445445]
[1725750653250,9.71,126.71,126.66,101.07445445]
[1725750653448,12.3617,126.71,126.66,3.85540761]
[1725750653752,3.947,126.69,126.65,3.9478]
[1725750654057,3.947,126.69,126.64,9.71]
[1725750654247,3.947,126.69,126.65,3.9477]
[1725750654446,3.947,126.69,126.66,3.9445845]
[1725750658244,9.71,126.69,126.63,1.2776]
[1725750658848,9.71,126.69,126.63,5.24562408]
[1725750659248,3.9477,126.67,126.63,9.19412408]
[1725750662254,2.6517,126.71,126.65,9.71]
[1725750662453,2.6517,126.71,126.66,9.71]
[1725750662659,3.9468,126.69,126.66,9.71]
[1725750664567,3.9468,126.69,126.66,13.6576]
[1725750665771,3.9468,126.69,126.66,9.71]
[1725750666161,3.9471,126.68,126.65,9.71]
[1725750666757,9.71,126.7,126.64,3.9482]
[1725750666758,3.9475,126.67,126.64,3.9482]
[1725750666958,9.71,126.7,126.64,3.9482]
[1725750667656,3.9474,126.68,126.64,3.9482]
[1725750672263,3.9474,126.68,126.65,3.9479]
[1725750672469,3.9474,126.68,126.65,13.6579]
[1725750672872,9.71,126.72,126.66,9.71]
[1725750673370,3.947,126.69,126.66,9.71]
[1725750673960,3.9463,126.71,126.66,9.71]
[1725750674165,3.9463,126.71,126.63,5.24562408]
[1725750674166,9.71,126.75,126.68,9.71]
[1725750674572,9.71,126.74,126.68,9.71]
[1725750675871,9.71,126.7,126.63,5.24562408]
[1725750676072,9.71,126.7,126.63,14.95562408]
[1725750676270,3.9476,126.67,126.63,18.90402408]
[1725750676472,3.9476,126.67,126.65,9.71]
[1725750677372,9.71,126.69,126.63,14.95562408]
[1725750678176,3.9479,126.66,126.63,14.95562408]
[1725750680174,3.9481,126.65,126.63,14.95562408]
[1725750682771,3.9481,126.65,126.63,5.24562408]
[1725750692078,3.9483,126.64,126.61,13.6592]
[1725750692387,3.9483,126.64,126.61,17.65280841]
[1725750692582,9.71,126.65,126.58,9.71]
[1725750693280,3.9493,126.62,126.58,13.6601]
[1725750694177,3.9493,126.62,126.59,3.9498]
[1725750701392,3.9488,126.63,126.6,9.71]
[1725750701691,3.9488,126.63,126.6,13.75463823]
[1725750702085,3.9488,126.63,126.6,17.70413823]
[1725750702290,3.9485,126.64,126.6,17.70413823]
[1725750703684,3.9487,126.63,126.6,17.70413823]
[1725750704084,1.296,126.68,126.61,3.9493]
[1725750704283,3.9485,126.64,126.61,3.9493]
[1725750708494,3.9482,126.65,126.62,3.9488]
[1725750711396,9.71,126.67,126.62,3.9488]
[1725750711600,9.71,126.67,126.61,3.9491]
[1725750711794,9.71,126.65,126.58,9.71]
[1725750711995,3.9488,126.63,126.58,9.71]
[1725750712807,3.9488,126.63,126.59,3.9498]
[1725750714097,3.9488,126.63,126.6,3.9496]
[1725750714304,3.9488,126.63,126.61,4.02172195]
[1725750717403,3.9488,126.63,126.6,3.9496]
[1725750718006,3.9488,126.63,126.6,7.83704075]
[1725750720710,3.949,126.62,126.6,7.83704075]
[1725750720895,9.71,126.65,126.6,7.83704075]
[1725750720896,9.71,126.64,126.6,3.88744075]
[1725750721099,1.3613,126.67,126.57,4.1788]
[1725750721100,3.9495,126.61,126.57,4.1788]
[1725750721296,3.9495,126.61,126.57,1.4128]
[1725750721704,3.9494,126.61,126.57,1.4128]
[1725750722514,3.9494,126.61,126.58,3.9502]
[1725750727609,1.3864,126.66,126.6,9.71]
[1725750727809,1.3864,126.66,126.61,3.91649549]
[1725750728109,3.9485,126.64,126.61,7.86579549]
[1725750728509,1.3864,126.66,126.61,3.91649549]
[1725750728716,3.9484,126.64,126.61,7.86559549]
[1725750730510,3.9482,126.65,126.61,7.86559549]
[1725750730715,3.9482,126.65,126.62,3.9489]
[1725750732120,3.9479,126.66,126.62,3.9489]
[1725750732515,3.9479,126.66,126.63,3.9487]
[1725750732716,3.9475,126.67,126.61,13.62649549]
[1725750733018,1.2843,126.72,126.66,3.9475]
[1725750733216,3.947,126.69,126.66,3.9475]
[1725750734419,3.9466,126.7,126.67,3.9474]
[1725750734714,1.2843,126.72,126.67,9.71]
[1725750734929,1.2843,126.72,126.68,3.947]
[1725750734930,3.9464,126.71,126.68,3.947]
[1725750735807,3.946,126.72,126.67,9.71]
[1725750736422,3.946,126.72,126.68,9.71]
[1725750737126,3.946,126.72,126.69,3.9466]
[1725750741425,3.946,126.72,126.68,9.71]
[1725750741426,3.9457,126.73,126.7,3.9464]
[1725750741625,1.3605,126.74,126.69,9.71]
[1725750742128,5.3059,126.74,126.71,3.946]
[1725750745734,3.9454,126.74,126.71,3.946]
[1725750748534,11.0634,126.76,126.72,3.9458]
[1725750748932,11.0452,126.77,126.72,3.97545473]
[1725750749131,1.3352,126.77,126.73,3.9455]
[1725750749338,3.9447,126.76,126.73,7.88187907]
[1725750749737,11.0452,126.77,126.73,7.88187907]
[1725750749950,3.9447,126.76,126.73,7.88187907]
[1725750750938,3.9449,126.75,126.72,3.9458]
[1725750751146,9.71,126.76,126.65,3.89884215]
[1725750751444,9.71,126.76,126.69,9.71]
[1725750751445,3.9452,126.74,126.69,9.71]
[1725750751738,3.9452,126.74,126.71,3.9459]
[1725750752249,3.9452,126.74,126.72,3.9458]
[1725750752436,3.9452,126.74,126.73,4.00592541]
[1725750754337,3.9451,126.75,126.73,4.00592541]
[1725750754633,3.9451,126.75,126.73,7.95142541]
[1725750754836,1.3352,126.77,126.72,9.71]
[1725750755033,3.9448,126.76,126.72,9.71]
[1725750755448,3.9448,126.76,126.73,3.9453]
[1725750756543,3.9444,126.77,126.74,3.945]
[1725750761350,11.0748,126.79,126.72,4.00276803]
[1725750761554,11.0748,126.79,126.71,9.71]
[1725750761946,3.9448,126.76,126.73,3.9454]
[1725750762251,3.9448,126.76,126.74,4.03844041]
[1725750762762,3.9444,126.77,126.74,7.98354041]
[1725750767956,3.9444,126.77,126.74,4.03844041]
[1725750768152,3.9448,126.76,126.73,3.9453]
[1725750768460,3.9448,126.76,126.74,4.02936438]
[1725750770749,3.9448,126.76,126.73,3.9453]
[1725750771362,3.9448,126.76,126.74,3.96346275]
[1725750777861,3.9444,126.77,126.74,7.90856275]
[1725750781670,3.9447,126.76,126.74,3.96346275]
[1725750781863,9.71,126.78,126.69,1.3778]
[1725750782067,9.71,126.77,126.71,4.01160037]
[1725750782670,9.71,126.77,126.69,11.0878]
[1725750782861,3.9454,126.74,126.71,3.946]
[1725750783367,1.3806,126.78,126.7,3.9462]
[1725750783368,3.9457,126.73,126.7,3.9462]
[1725750785375,3.9453,126.74,126.71,3.9462]
[1725750785567,3.9453,126.74,126.71,13.6562]
[1725750788372,3.945,126.75,126.72,13.6557]
[1725750788771,1.3806,126.78,126.72,9.71]
[1725750789070,3.9448,126.76,126.73,3.9454]
[1725750789267,1.3806,126.78,126.73,3.9454]
[1725750790473,3.9448,126.76,126.73,3.9454]
[1725750794675,3.86811038,126.76,126.73,3.9454]
[1725750799482,3.86811038,126.76,126.73,3.9455]
[1725750799777,3.86811038,126.76,126.74,9.71]
[1725750800575,3.86811038,126.76,126.74,13.61221324]
[1725750800776,3.9445,126.77,126.74,17.55731324]
[1725750801983,3.9445,126.77,126.75,3.9449]
[1725750810681,3.9442,126.78,126.75,3.9449]
[1725750811081,3.9442,126.78,126.76,3.9446]
[1725750811284,36.04116361,126.82,126.77,9.71]
[1725750811485,3.86954726,126.83,126.77,9.71]
[1725750811680,3.9432,126.81,126.78,3.9438]
[1725750812686,3.9429,126.82,126.78,9.71]
[1725750812894,41.47754054,126.85,126.78,9.71]
[1725750813202,3.9429,126.82,126.79,3.9436]
[1725750814084,3.9431,126.81,126.78,3.9438]
[1725750814288,4.142,126.85,126.79,9.71]
[1725750814490,4.142,126.85,126.8,9.71]
[1725750814686,3.9426,126.83,126.8,13.6532]
[1725750814885,3.9426,126.83,126.8,3.9432]
[1725750815289,4.142,126.85,126.79,9.71]
[1725750815883,3.9426,126.83,126.79,13.6535]
[1725750816698,3.9426,126.83,126.8,13.6532]
[1725750818195,3.9426,126.83,126.8,3.9432]
[1725750820794,3.9426,126.83,126.8,13.6532]
[1725750821597,3.9423,126.84,126.81,3.943]
[1725750822600,9.71,126.86,126.8,13.6531]
[1725750823491,3.9425,126.83,126.8,13.6531]